{"text_format":"1","workbook":"xlsx","n_sheets":9,"sheets":["Forside","Betalingsforetak","Betalingsforetak_b","Beregningsmetode_b","E-pengeforetak","Beregningsmetode_e","Opplysningsfullmektig","Betalingsfullmektig","Betalings-og opplysningsfullmek"],"not_rendered":{"charts":0,"images":1,"macros":1,"external_links":0,"defined_names":8,"comments":0,"pivot_tables":0},"unopened":[],"bounds":{"document_bytes":16777216,"sheet_cells":100000,"rows_first":2000,"rows_last":500,"rows_between":2000,"halvings":0,"cell_chars":16384,"cell_head_chars":4096},"cells_cut":0,"cells_raw":0,"read":"whole","date_system":"1900"}

{"sheet":"Forside","index":0,"n_rows":14,"n_cols":98,"rows_kept":14,"cut":false,"hidden":false,"merged":[[13,1,13,2],[3,1,3,7]]}
["VERSJONSNUMMER","KRT-1097",null,null,null,null,null,null,null,null,null,null,null,null,null,null,null,null,null,null,null,null,null,null,null,null,{"$f":"(YEAR(NOW())) +1","v":2023},null,null,null,null,null,null,null,{"$f":"(YEAR(NOW()))","v":2022},null,null,null,null,null,null,null,null,null,null,null,null,null,null,null,null,null,2,{"$f":"D16","v":0},{"$f":"A2","v":272},{"$f":"D8","v":0},{"$f":"C12","v":0},{"$f":"IF(D12=\"1.kvartal\",CONCATENATE(\"3\"),IF(D12=\"1.halvår\",CONCATENATE(\"6\"),IF(D12=\"1.-3.kvartal\",CONCATENATE(\"9\"),IF(D12=\"År\",CONCATENATE(\"12\"),\"\"))))","v":"6"},10,"Forside",{"$f":"IF(B16=\"Konsolidert\",2,IF(B16=\"Ikke-Konsolidert\",1,IF(B16=\"\",-1)))","v":-1},0,null,null,null,null,null,null,null,null,null,null,null,null,null,null,null,null,"BA",999999001,"BB",{"$f":"+CB1+1","v":999999002},"BC",{"$f":"+CD1+1","v":999999003},"BD",{"$f":"+CF1+1","v":999999004},"BE",{"$f":"+CH1+1","v":999999005},"BF",{"$f":"+CJ1+1","v":999999006},"BG",{"$f":"+CL1+1","v":999999007},"BH",{"$f":"+CN1+1","v":999999008},"BI",{"$f":"+CP1+1","v":999999009},"BJ",{"$f":"+CR1+1","v":999999010}]
[272,null,null,null,null,null,null,null,null,null,null,null,null,null,null,null,null,null,null,null,null,null,null,null,null,null,{"$f":"(YEAR(NOW()))","v":2022},null,null,null,null,null,null,null,{"$f":"(YEAR(NOW())-1)","v":2021},null,null,null,null,null,null,null,null,null,null,null,null,null,null,null,null,null,"Skjema-ID","versjonNr","VersjonsID","orgnr","ÅR","mnd","Antall datakolonner","Arknavn","konsIkkeKons","SA/IRB"]
[null,null,null,null,null,null,null,null,null,null,null,null,null,null,null,null,null,null,null,null,null,null,null,null,null,null,{"$f":"(YEAR(NOW())-1)","v":2021}]
[null,"Rapportering for betalingsforetak, e-pengeforetak og opplysningsfullmektiger",null,null,null,null,null,null,null,null,null,null,null,null,null,null,null,null,null,null,null,null,null,null,null,null,null,null,null,null,null,null,null,null,null,null,null,null,null,null,null,null,null,null,null,null,null,null,null,null,null,null,null,null,null,null,null,null,"i dokumentet"]
[null,null,null,null,null,null,null,null,null,null,null,null,null,null,null,null,null,null,null,null,null,null,null,null,null,null,null,null,null,null,null,null,null,null,null,null,null,null,null,null,null,null,null,null,null,null,null,null,null,null,null,null,null,"Dette er skjemaversjonens CREATION DATE"]
[]
[null,"FORETAKETS NAVN:","FORRETNINGSADRESSE:","ORGANISASJONSNUMMER:"]
[null,null,null,null,null,null,null,null,null,null,null,null,null,null,null,null,null,null,null,null,null,null,null,null,null,null,null,null,null,null,null,null,null,null,null,null,null,null,null,null,null,null,null,null,null,null,null,null,null,null,null,null,null,null,null,null,null,null,null,null,null,null,null,null,null,null,null,null,null,null,null,null,null,null,null,null,null,null,"B",295]
[null,"KONTAKTPERSON:","EPOST:","TELEFONNUMMER:"]
[]
[null,"SISTE DAG I RAPPORTERINGSPERIODEN:","RAPPORTERINGSÅR:","RAPPORTERINGSPERIODE:"]
[null,{"$f":"IF(AND(C12<>\"\",D12<>\"\"),CONCATENATE(RIGHT(C12,4),\"-\",IF(D12=\"1.halvår\",CONCATENATE(\"06-30\"),IF(D12=\"År\",CONCATENATE(\"12-31\"),\"\"))))","v":false},null,"1.halvår",null,null,null,null,null,null,null,null,null,null,null,null,null,null,null,null,null,null,null,null,null,null,null,null,null,null,null,null,null,null,null,null,null,null,null,null,null,null,null,null,null,null,null,null,null,null,null,null,null,null,null,null,null,null,null,null,null,null,null,null,null,null,null,null,null,null,null,null,null,null,null,null,null,null,"B",296,"D",297,"E",298]
[null,"EXCELMAL GYLDIG FRA:  2022-01-01"]
[null,"Hvilken type tillatelse?",null," "]

{"sheet":"Betalingsforetak","index":1,"n_rows":93,"n_cols":17,"rows_kept":93,"cut":false,"hidden":true,"merged":[[1,1,1,2],[55,1,55,2],[20,4,28,4]]}
[null,"Rapporteringsskjema for betalingsforetak",null,null,null,null,null,null,null,null,null,null,null,null,"31.12.",{"$f":"YEAR(NOW())-1","v":2021},{"$f":"O1&P1","v":"31.12.2021"}]
[null,"Betalingsforetak skal ved utløpet av hvert halvår foreta regnskapsinnberetning til Finanstilsynet, jf. § 2-6 i forskrift om finansforetak og finanskonsern.                                                                            Alle hvite felter skal fylles ut, med mindre annet står eksplisitt. \n",null,null,null,null,null,null,null,null,null,null,null,null,"30.06.",{"$f":"YEAR(NOW())","v":2022},{"$f":"O2&P2","v":"30.06.2022"}]
[]
[null,"Ansvarlig person for oppfølging av hvitvaskingsregelverket, navn:"]
[null,"Foretakets revisor (navn):"]
[null,"Foretakets revisor (org.nr.):"]
[null,"Foretakets regnskapsfører (hvis det brukes regnskapsfører) (navn):"]
[null,"Foretakets regnskapsfører (org.nr.):"]
[]
[]
[null,"Er foretaket også agent for et utenlandsk betalingsforetak: JA/NEI"]
[null,"Hvis JA, hvilket betalings-/e-pengeforetak er foretaket agent for?"]
[null,"Har foretaket agenter eller filialer: JA/NEI"]
[null,"Antall kontroller med agent/filial, siste 12 måneder"]
[null,"Har det vært stedlig og/eller dokumentbasert kontroll?"]
[]
[null,null,"Kroner"]
[null,"Gjennomsnittlig månedlig sum av betalingstjenester foretaket har utført i rapporteringsperioden "]
[]
[]
[null,"Antall transaksjoner i rapporteringsperioden",null,null,"HUSK AT ALLE FELTER MÅ FYLLES UT!"]
[null,"Antall transaksjoner til høyrisikoland, jf. hvitvaskingsforskriften § 4-10, i rapporteringsperioden"]
[null,"Total verdi i NOK på transaksjonene til høyrisikoland, som nevnt i foregående spørsmål. "]
[null,"Antall transaksjoner til andre land foretaket selv anser som høyrisiko, i rapporteringsperioden"]
[null,"Total verdi i NOK på transaksjonene til andre høyrisikoland, som nevnt i foregående spørsmål. "]
[null,"Antall unike kunder som har gjennomført transaksjoner i rapporteringsperioden"]
[null,"Antall kunder som har gjennomført transaksjoner i rapporteringsperioden, og som av foretaket er klassifisert som høyrisikokunder. "]
[null,"Antall undersøkelser i henhold til hvitvaskingsloven § 25 som ble foretatt i rapporteringsperioden,\nmen som ikke resulterte i melding til ØKOKRIM"]
[null,"Antall meldinger om mistenkelige transaksjoner \nsom er sendt til ØKOKRIM i rapporteringsperioden, i henhold til hvitvaskingsloven § 26:"]
[]
[null,"Sikring av klientmidler ","Kroner"]
[null,"Adskilte klientmidler, jf. finansforetaksloven § 13-18"]
[null,"Klientansvar ifølge regnskapet"]
[null,"Differanse mellom klientmidler og klientansvar",{"$f":"+C32-C33","v":0}]
[null,"Forklar differansen mellom adskilte klientmidler og klientansvar (med tekst)"]
[null,"Hvis foretaket har, hva er garanti fra forsikringsforetak/bank, jf. finansforetaksloven § 13-18"]
[]
[null,"Balanse","Kroner"]
[null,"Varige driftsmidler og finansielle anleggsmidler"]
[null,"Immaterielle eiendeler "]
[null,"Utsatt skattefordel"]
[null,"Andre fradragsposter jf. § 7 i forskrift om beregning av ansvarlig kapital for banker mv."]
[null,"Bankinnskudd, kontanter og lignende "]
[null,"Andre fordringer og eiendeler"]
[null,"Sum eiendeler ",{"$f":"SUM(C39:C44)","v":0}]
[]
[null,"Betalbar skatt og skyldige offentlige avgifter"]
[null,"Annen gjeld"]
[null,"Ansvarlig lånekapital",null,{"$f":"IF(C49>D71,\"Ansvarlig lånekapital utgjør mer enn 25% av ansvarlig kapital. Overskytende lånekapital må føres under 'annen gjeld'.\",\"\")","v":""}]
[null,"Innskutt egenkapital"]
[null,"Opptjent egenkapital (Kapital fra revisorgodkjent delsårsresultat som kan medregnes som ansvarlig kapital jf. Forskrift om beregning av ansvarlig kapital for banker mv. § 3 sjette punkt, skal inkluderes her)"]
[null,"Resultat hittil i år (Skal kun fylles ut for rapportering for første halvår. Delårsresultat som er tatt med i linjen over skal ikke med  her)"]
[null,"Sum egenkapital og forpliktelser",{"$f":"SUM(C47:C52)","v":0},{"$f":"C45-C53","v":0},{"$f":"IF(D53<>0, \"Sum eiendeler skal være lik sum egenkapital og forpliktelser\",\"\")","v":""}]
[]
[null,"Resultatregnskap (akkumulert)","Kroner"]
[null,"Inntekter:"]
[null,"Provisjonsinntekter fra konsesjonspliktig virksomhet (kun betalingsforetaksvirksomhet)"]
[null,"Andre inntekter fra konsesjonspliktig virksomhet (kun betalingsforetaksvirksomhet)"]
[null,"Inntekter som ikke er knyttet til konsesjonspliktig betalingsforetaksvirksomhet"]
[null,"Sum inntekter",{"$f":"SUM(C57:C59)","v":0}]
[]
[null,"Kostnader:","Kroner"]
[null,"Provisjonskostnader fra konsesjonspliktig virksomhet (kun betalingsforetaksvirksomhet)"]
[null,"Andre kostnader fra konsesjonspliktig virksomhet (kun betalingsforetaksvirksomhet)"]
[null,"Kostnader som ikke er knyttet til konsesjonspliktig betalingsforetaksvirksomhet"]
[null,"Skattekostnad"]
[null,"Sum kostnader",{"$f":"SUM(C63:C66)","v":0}]
[null,"Resultat etter skatt for perioden",{"$f":"+C60-C67","v":0}]
[]
[null,"Kontroll av egenkapital ","Kroner",null,"mellomregning:"]
[null,"Sum ansvarlig kapital ved utgang av perioden",{"$f":"SUM(C49:C51) +IF(C52<0,C52,0) -C42-C41-C40","v":0},{"$f":"C71*25%","v":0}]
[null,"Krav til startkapital jf.§ 3-4 (2) i finansforetaksloven og konsesjonsbrev"]
[null,"Kapitalkrav hentet fra beregningsmetode A",{"$f":"Beregningsmetode_b!C9","v":0}]
[null,"Kapitalkrav hentet fra beregningsmetode B ",{"$f":"Beregningsmetode_b!C24","v":0}]
[null,"Kapitalkrav hentet fra beregningsmetode C ",{"$f":"Beregningsmetode_b!C37","v":0}]
[null,"Ansvarlig kapital minus kapitalkrav",{"$f":"C71-MAX(C72:C75)","v":0},null,{"$f":"IF(C76<0,\"Feil, sjekk beregningen\",\"\")","v":""}]
[]
[null,"For foretak med tillatelse til å yte betalingsfullmakt- eller kontoinformasjonstjenester"]
[null,"Har foretaket  tillatelse til å yte betalingsfulllmaktstjenester?  JA/NEI"]
[null,"Hvis JA, fyll ut punktene nedenfor. For ytterligere informasjon se EBA guideline","EBA/GL/2017/08"]
[null,"Størrelse på garanti/forsikring i kroner"]
[null,"Verdi i NOK av forespørsler om tilbakebetaling mottatt, siste 12 måneder (EBA guideline 5.1, 5.2, 5.3, 5.4)"]
[null,"Antall initierte betalingstransaksjoner, siste 12 måneder (EBA guideline 5.5, 5.6, 5.7)"]
[null,"Verdi av initierte betalingstransaksjoner, siste 12 måneder (EBA guideline 7.1, 7.3, 7.4)"]
[null,"Kan foretaket bekrefte at det har en forsikring/garanti som tilfredsstiller krav i finansforetaksloven § 2-10 annet ledd og EBA/GL/2017/08?   JA/NEI"]
[]
[null,"Har foretaket tillatelse til å yte kontoinformasjonstjenester? JA/NEI"]
[null,"Hvis JA, fyll ut punktene nedenfor. For ytterligere informasjon se EBA guideline","EBA/GL/2017/08"]
[null,"Størrelse på garanti/forsikring i kroner"]
[null,"Verdi i NOK av forespørsler om tilbakebetaling mottatt, siste 12 måneder (EBA guideline 5.1, 5.2, 5.3, 5.4)"]
[null,"Antall adganger gitt til betalingskontoer, siste 12 måneder (EBA guideline 5.8, 5.9, 5.10)"]
[null,"Antall brukere av kontoinformasjonstjenester, siste 12 måneder (EBA guideline 7.2, 7.3, 7.4)"]
[null,"Kan foretaket bekrefte at det har en forsikring/garanti som tilfredsstiller krav i finansforetaksloven § 2-10a tredje ledd og EBA/GL/2017/08  JA/NEI"]

{"sheet":"Betalingsforetak_b","index":2,"n_rows":66,"n_cols":17,"rows_kept":66,"cut":false,"hidden":true,"merged":[[1,1,1,2],[13,4,21,4]]}
[null,"Rapporteringsskjema for betalingsforetak med begrenset konsesjon",null,null,null,null,null,null,null,null,null,null,null,null,"31.12.",{"$f":"YEAR(NOW())-1","v":2021},{"$f":"O1&P1","v":"31.12.2021"}]
[null,"Betalingsforetak skal ved utløpet av hvert halvår foreta regnskapsinnberetning til Finanstilsynet, jf. § 2-6 i forskrift om finansforetak og finanskonsern.                                                                        Alle hvite felter skal fylles ut, med mindre annet står eksplisitt.\n",null,null,null,null,null,null,null,null,null,null,null,null,"30.06.",{"$f":"YEAR(NOW())","v":2022},{"$f":"O2&P2","v":"30.06.2022"}]
[]
[null,"Ansvarlig person for oppfølging av hvitvaskingsregelverket, navn:"]
[null,"Foretakets revisor (navn):"]
[null,"Foretakets revisor (org.nr.):"]
[null,"Foretakets regnskapsfører (hvis det brukes regnskapsfører) (navn):"]
[null,"Foretakets regnskapsfører (org.nr.):"]
[]
[null,null,"Kroner"]
[null,"Gjennomsnittlig månedlig sum av betalingstjenester foretaket har utført i rapporteringsperioden "]
[]
[]
[null,"Antall transaksjoner i rapporteringsperioden",null,null,"HUSK AT ALLE FELTER MÅ FYLLES UT!"]
[null,"Antall transaksjoner til høyrisikoland, jf. hvitvaskingsforskriften § 4-10, i rapporteringsperioden"]
[null,"Total verdi i NOK på transaksjonene til høyrisikoland, som nevnt i foregående spørsmål. "]
[null,"Antall transaksjoner til andre land foretaket selv anser som høyrisiko, i rapporteringsperioden"]
[null,"Total verdi i NOK på transaksjonene til andre høyrisikoland, som nevnt i foregående spørsmål. "]
[null,"Antall unike kunder som har gjennomført transaksjoner i rapporteringsperioden"]
[null,"Antall kunder som har gjennomført transaksjoner i rapporteringsperioden, og som av foretaket er klassifisert som høyrisikokunder. "]
[null,"Antall undersøkelser i henhold til hvitvaskingsloven § 25 som ble foretatt i rapporteringsperioden,\nmen som ikke resulterte i melding til ØKOKRIM"]
[null,"Antall meldinger om mistenkelige transaksjoner \nsom er sendt til ØKOKRIM i rapporteringsperioden, i henhold til hvitvaskingsloven § 26:"]
[]
[null,"Sikring av klientmidler (fyll inn en av de to linjene nedenfor)","Kroner"]
[null,"Adskilte klientmidler, jf. finansforetaksloven § 13-18"]
[null,"Klientansvar ifølge regnskapet"]
[null,"Differanse mellom klientmidler og klientansvar"]
[null,"Forklar differansen mellom adskilte klientmidler og klientansvar (med tekst)"]
[null,"Garanti fra forsikringsforetak/bank, jf. finansforetaksloven § 13-18"]
[]
[null,"Balanse","Kroner"]
[null,"Varige driftsmidler og finansielle anleggsmidler"]
[null,"Immaterielle eiendeler"]
[null,"Utsatt skattefordel"]
[null,"Andre fradragsposter jf. § 7 i forskrift om beregning av ansvarlig kapital for banker mv."]
[null,"Bankinnskudd, kontanter og lignende "]
[null,"Andre fordringer og eiendeler"]
[null,"Sum eiendeler ",{"$f":"SUM(C32:C37)","v":0}]
[]
[null,"Betalbar skatt og skyldige offentlige avgifter"]
[null,"Annen gjeld"]
[null,"Ansvarlig lånekapital",null,{"$f":"IF(C42>D64,\"Ansvarlig lånekapital utgjør mer enn 25% av ansvarlig kapital. Overskytende lånekapital må føres under 'annen gjeld'.\",\"\")","v":""}]
[null,"Innskutt egenkapital"]
[null,"Opptjent egenkapital (Kapital fra revisorgodkjent delsårsresultat som kan medregnes som ansvarlig kapital jf. Forskrift om beregning av ansvarlig kapital for banker mv. § 3 sjette punkt, skal inkluderes her)"]
[null,"Resultat hittil i år (Skal kun fylles ut for rapportering for første halvår. Delårsresultat som er tatt med i linjen over skal ikke med her)"]
[null,"Sum egenkapital og forpliktelser",{"$f":"SUM(C40:C45)","v":0},{"$f":"C38-C46","v":0},{"$f":"IF(D46<>0, \"Sum eiendeler skal være lik sum egenkapital og forpliktelser\",\"\")","v":""}]
[]
[null,"Resultatregnskap (akkumulert)","Kroner"]
[null,"Inntekter:"]
[null,"Provisjonsinntekter fra konsesjonspliktig virksomhet (kun betalingsforetaksvirksomhet)"]
[null,"Andre inntekter fra konsesjonspliktig virksomhet (kun betalingsforetaksvirksomhet)"]
[null,"Inntekter som ikke er knyttet til konsesjonspliktig betalingsforetaksvirksomhet"]
[null,"Sum inntekter",{"$f":"SUM(C50:C52)","v":0}]
[]
[null,"Kostnader:","Kroner"]
[null,"Provisjonskostnader fra konsesjonspliktig virksomhet (kun betalingsforetaksvirksomhet)"]
[null,"Andre kostnader fra konsesjonspliktig virksomhet (kun betalingsforetaksvirksomhet)"]
[null,"Kostnader som ikke er knyttet til konsesjonspliktig betalingsforetaksvirksomhet"]
[null,"Skattekostnad"]
[null,"Sum kostnader",{"$f":"SUM(C56:C59)","v":0}]
[null,"Resultat etter skatt for perioden",{"$f":"+C53-C60","v":0}]
[]
[null,"Kontroll av egenkapital ","Kroner"]
[null,"Sum ansvarlig kapital ved utgang av perioden",{"$f":"SUM(C42:C44) +IF(C45<0,C45,0) -C35-C34-C33","v":0},{"$f":"C64*25%","v":0}]
[null,"Krav til kapital jf. finansforetaksforskriften § 14-2, jf. finansforetaksloven § 3-4 (2)bokstav a (20 000 euro)"]
[null,"Ansvarlig kapital minus kapitalkrav",{"$f":"C64-MAX(C65:C65)","v":0},null,{"$f":"IF(C66<0,\"Feil, sjekk beregningen\",\"\")","v":""}]

{"sheet":"Beregningsmetode_b","index":3,"n_rows":37,"n_cols":17,"rows_kept":37,"cut":false,"hidden":true,"merged":[[1,1,1,2]]}
[null,"Rapporteringsskjema for betalingsforetak med full konsesjon",null,null,null,null,null,null,null,null,null,null,null,null,"31.12.",{"$f":"YEAR(NOW())-1","v":2021},{"$f":"O1&P1","v":"31.12.2021"}]
[null,"Det er tre forskjellige metoder for beregning av kapitalkrav, og betalingsforetak skal til enhver tid inneha en ansvarlig kapital beregnet i samsvar med en av følgende tre metoder, og aldri lavere enn startkapitalen.\nMetode A som er regnet ut etter foregående års faste kostnader, og metode B og C som er beregnet etter formler gitt i forskrift om finansforetak og finanskonsern § 14-4.\nForetaket skal benytte den metoden som gir høyest krav til kapital.",null,null,null,null,null,null,null,null,null,null,null,null,"30.06.",{"$f":"YEAR(NOW())","v":2022},{"$f":"O2&P2","v":"30.06.2022"}]
[]
[null,"Beregningsmetode A: Faste kostnader","Kroner"]
[null,"Utgifter til personal og administration"]
[null,"Av- og nedskriving av materielle og immaterielle aktiva"]
[null,"Andre driftskostnader"]
[null,"Faste kostnader i alt",{"$f":"SUM(C5:C7)","v":0}]
[null,"Kapitalkrav: 10 prosent av faste kostnader",{"$f":"C8*0.1","v":0}]
[]
[null,"Omregningsfaktorer ved bruk av metode B og C. (Sett kryss i en av cellene)","Kryss"]
[null,"Hvis selskapet yter betalingstjenester som anført i forskrift om finansforetak og finanskonsern § 14-4, annet ledd  b). \n                                                                                                                                                               Omregningsfaktor 1,0. Sett kryss (x)"]
[null,"Hvis selskapet kun yter betalingstjenester som anført i forskrift om finansforetak og finanskonsern § 14-4, annet ledd  a). \n                                                                                                                                                               Omregningsfaktor 0,5. Sett kryss (x)"]
[]
[null,"Beregningsmetode B: Betalingsvolum","Kroner"]
[null,"Samlet betalingsvolum (dvs. sum betalingstransaksjoner siste 12 måneder)"]
[null,"BV = 1/12 av samlet betalingsvolum (ved oppstart, beregnet månedsvolum)"]
[null,"a. 4,0 prosent av BV inntil 5 mill. euro"]
[null,"b. 2,5 prosent over 5 mill. euro inntil 10 mill. euro"]
[null,"c. 1,0 prosent av BV over 10 mill. euro inntil 100 mill. euro"]
[null,"d. 0,5 prosent av BV over 100 mill. euro inntil 250 mill. euro"]
[null,"e. 0,25 prosent over 250 mill. euro"]
[null,"Sum (a-e)",{"$f":"SUM(C18:C22)","v":0}]
[null,"Kapitalkrav:  Sum (a-e)  *  omregningsfaktor (dvs. enten 0,5/1,0)"]
[]
[null,"Beregningsmetode C: Nettoinntekter","Kroner"]
[null,"Netto renteinntekter (+/-)"]
[null,"Mottatte provisjoner og gebyrer (+/-)"]
[null,"Andre driftsinntekter (+/-)"]
[null,"Nettoinntekter (NT) i alt (+/-)",{"$f":"SUM(C27:C29)","v":0}]
[null,"a. 10 prosent av NT fra 0 - 2,5 mill. euro"]
[null,"b. 8,0 prosent av NT over 2,5 mill. euro - 5,0 mill. euro"]
[null,"c. 6,0 prosent av NT over 5,0 mill. euro - 25,0 mill. euro"]
[null,"d. 3,0 prosent av NT over 25,0 mill. euro - 50,0 mill. euro"]
[null,"e. 1,5 prosent over 50,0 mill. euro"]
[null,"Sum (a-e)",{"$f":"SUM(C31:C35)","v":0}]
[null,"Kapitalkrav: Sum (a-e) * omregningsfaktor (dvs. enten 0,5/1,0)"]

{"sheet":"E-pengeforetak","index":4,"n_rows":91,"n_cols":19,"rows_kept":91,"cut":false,"hidden":true,"merged":[[1,1,1,2]]}
[null,"Rapporteringsskjema for e-pengeforetak",null,null,null,null,null,null,null,null,null,null,null,null,null,null,"31.12.",{"$f":"YEAR(NOW())-1","v":2021},{"$f":"Q1&R1","v":"31.12.2021"}]
[null,"E-pengeforetak skal ved utløpet av hvert halvår foreta regnskapsinnberetning til Finanstilsynet, jf. § 2-10 i forskrift om finansforetak og finanskonsern.                                                               Alle hvite felter skal fylles ut, med mindre annet står eksplisitt.\n",null,null,null,null,null,null,null,null,null,null,null,null,null,null,"30.06.",{"$f":"YEAR(NOW())","v":2022},{"$f":"Q2&R2","v":"30.06.2022"}]
[]
[null,"Ansvarlig person for oppfølging av hvitvaskingsregelverket, navn:"]
[null,"Foretakets revisor (navn):"]
[null,"Foretakets revisor (org.nr.):"]
[null,"Foretakets regnskapsfører (hvis det brukes regnskapsfører) (navn):"]
[null,"Foretakets regnskapsfører (org.nr.):"]
[]
[]
[null,"Er foretaket også agent for et utenlandsk betalingsforetak: JA/NEI"]
[null,"Hvis JA, hvilket betalings-/e-pengeforetak er foretaket agent for?"]
[null,"Har foretaket agenter eller filialer: JA/NEI"]
[null,"Antall kontroller med agent/filial, siste 12 måneder"]
[null,"Har det vært stedlig og/eller dokumentbasert kontroll?"]
[]
[]
[null,"Antall transaksjoner i rapporteringsperioden"]
[null,"Antall transaksjoner til høyrisikoland, jf. hvitvaskingsforskriften § 4-10, i rapporteringsperioden"]
[null,"Total verdi i NOK på transaksjonene til høyrisikoland, som nevnt i foregående spørsmål. "]
[null,"Antall transaksjoner til andre land foretaket selv anser som høyrisiko, i rapporteringsperioden"]
[null,"Total verdi i NOK på transaksjonene til andre høyrisikoland, som nevnt i foregående spørsmål. "]
[null,"Antall unike kunder som har gjennomført transaksjoner i rapporteringsperioden"]
[null,"Antall kunder som har gjennomført transaksjoner i rapporteringsperioden, og som av foretaket er klassifisert som høyrisikokunder. "]
[null,"Antall undersøkelser i henhold til hvitvaskingsloven § 25 som ble foretatt i rapporteringsperioden,\nmen som ikke resulterte i melding til ØKOKRIM"]
[null,"Antall meldinger om mistenkelige transaksjoner \nsom er sendt til ØKOKRIM i rapporteringsperioden, i henhold til hvitvaskingsloven § 26:"]
[]
[null,"Sikring av klientmidler ","Kroner"]
[null,"Adskilte klientmidler, jf. finansforetaksloven § 13-18"]
[null,"Klientansvar ifølge regnskapet"]
[null,"Differanse mellom klientmidler og klientansvar",{"$f":"+C29-C30","v":0}]
[null,"Forklar differansen mellomd adskilte klientmidler og klientansvar (med tekst)"]
[null,"Hvis foretaket har, hva er Garanti fra forsikringsforetak/bank, jf. finansforetaksloven § 13-18"]
[null,"Gjennomsnittlig månedlig sum av betalingstjenester foretaket har utført i rapporteringsperioden "]
[]
[null,"Balanse","Kroner"]
[null,"Varige driftsmidler og finansielle anleggsmidler"]
[null,"Immaterielle eiendeler"]
[null,"Utsatt skattefordel"]
[null,"Andre fradragsposter jf. § 7 i forskrift om beregning av ansvarlig kapital for banker mv."]
[null,"Bankinnskudd, kontanter og lignende "]
[null,"Andre fordringer og eiendeler"]
[null,"Sum eiendeler ",{"$f":"SUM(C37:C42)","v":0}]
[]
[null,"Betalbar skatt og skyldige offentlige avgifter"]
[null,"Annen gjeld"]
[null,"Ansvarlig lånekapital",null,{"$f":"IF(C47>D69,\"Ansvarlig lånekapital utgjør mer enn 25% av ansvarlig kapital. Overskytende lånekapital må føres under 'annen gjeld'.\",\"\")","v":""}]
[null,"Innskutt egenkapital"]
[null,"Opptjent egenkapital (Kapital fra revisorgodkjent delsårsresultat som kan medregnes som ansvarlig kapital jf. Forskrift om beregning av ansvarlig kapital for banker mv. § 3 sjette punkt, skal inkluderes her)"]
[null,"Resultat hittil i år (Skal kun fylles ut for rapportering for første halvår. Delårsresultat som er tatt med i linjen over skal ikke med her)"]
[null,"Sum egenkapital og forpliktelser",{"$f":"SUM(C45:C50)","v":0},{"$f":"C43-C51","v":0},{"$f":"IF(D51<>0, \"Sum eiendeler skal være lik sum egenkapital og forpliktelser\",\"\")","v":""}]
[]
[null,"Resultatregnskap (akkumulert)","Kroner"]
[null,"Inntekter:"]
[null,"Provisjonsinntekter fra konsesjonspliktig virksomhet (kun e-pengevirksomhet)"]
[null,"Andre inntekter fra konsesjonspliktig virksomhet (kun e-pengevirksomhet)"]
[null,"Inntekter som ikke er knyttet til e-pengevirksomhet"]
[null,"Sum inntekter",{"$f":"SUM(C55:C57)","v":0}]
[]
[null,"Kostnader:","Kroner"]
[null,"Provisjonskostnader fra konsesjonspliktig virksomhet (kun e-pengevirksomhet)"]
[null,"Andre kostnader fra konsesjonspliktig virksomhet (kun e-pengevirksomhet)"]
[null,"Kostnader som ikke er knyttet til e-pengevirksomhet"]
[null,"Skattekostnader"]
[null,"Sum kostnader",{"$f":"SUM(C61:C64)","v":0}]
[null,"Resultat etter skatt for perioden",{"$f":"+C58-C65","v":0}]
[]
[null,"Kontroll av egenkapital ","Kroner"]
[null,"Sum ansvarlig kapital ved utgang av perioden",{"$f":"SUM(C47:C49) +IF(C50<0,C50,0) -C40-C38-C39","v":0},{"$f":"C69*25%","v":0}]
[null,"Krav til startkapital jf.§ 3-4 (2) i finansforetaksloven og konsesjonsbrev"]
[null,"Kapitalkrav hentet fra beregningsmetode A",{"$f":"Beregningsmetode_e!C9","v":0}]
[null,"Kapitalkrav hentet fra beregningsmetode B ",{"$f":"Beregningsmetode_e!C24","v":0}]
[null,"Kapitalkrav hentet fra beregningsmetode C ",{"$f":"Beregningsmetode_e!C37","v":0}]
[null,"Ansvarlig kapital minus kapitalkrav",{"$f":"+Beregningsmetode_e!C43","v":0}]
[]
[null,"For foretak med tillatelse til å yte betalingsfullmakt eller kontoinformasjonstjenester"]
[null,"Har foretaket  tillatelse til å yte betalingsfulllmaktstjenester?  JA/NEI"]
[null,"Hvis JA, fyll ut punktene nedenfor. For ytterligere informasjon se EBA guideline","EBA/GL/2017/08"]
[null,"Størrelse på garanti/forsikring i kroner"]
[null,"Verdi i NOK av forespørsler om tilbakebetaling mottatt, siste 12 måneder (EBA guideline 5.1, 5.2, 5.3, 5.4)"]
[null,"Antall initierte betalingstransaksjoner, siste 12 måneder (EBA guideline 5.5, 5.6, 5.7)"]
[null,"Verdi av initierte betalingstransaksjoner, siste 12 måneder (EBA guideline 7.1, 7.3, 7.4)"]
[null,"Kan foretaket bekrefte at det har en forsikring/garanti som tilfredsstiller krav jf finansforetaksloven § 2-10 annet ledd og EBA/GL/2017/08 JA/NEI"]
[]
[null,"Har foretaket tillatelse til å yte kontoinformasjonstjenester?  JA/NEI"]
[null,"Hvis JA, fyll ut punktene nedenfor. For ytterligere informasjon se EBA guideline","EBA/GL/2017/08"]
[null,"Størrelse på garanti/forsikring i kroner"]
[null,"Verdi i NOK av forespørsler om tilbakebetaling mottatt, siste 12 måneder (EBA guideline 5.1, 5.2, 5.3, 5.4)"]
[null,"Antall adganger gitt til betalingskontoer, siste 12 måneder (EBA guideline 5.8, 5.9, 5.10)"]
[null,"Antall brukere av kontoinformasjonstjenester, siste 12 måneder (EBA guideline 7.2, 7.3, 7.4)"]
[null,"Kan foretaket bekrefte at det har en forsikring/garanti som tilfredsstiller krav jf finansforetaksloven § 2-10a tredje ledd og EBA/GL/2017/08 JA/NEI"]

{"sheet":"Beregningsmetode_e","index":5,"n_rows":43,"n_cols":17,"rows_kept":43,"cut":false,"hidden":true,"merged":[[1,1,1,2]]}
[null,"Rapporteringsskjema for e-pengeforetak",null,null,null,null,null,null,null,null,null,null,null,null,"31.12.",{"$f":"YEAR(NOW())-1","v":2021},{"$f":"O1&P1","v":"31.12.2021"}]
[null,"Det er tre forskjellige metoder for beregning av kapitalkrav, og e-pengeforetak skal til enhver tid inneha en ansvarlig kapital beregnet i samsvar med en av følgende tre metoder, og aldri lavere enn startkapitalen.\nMetode A som er regnet ut etter foregående års faste kostnader, og metode B og C som er beregnet etter formler gitt i forskrift om finansforetak og finanskonsern § 14-4.\nForetaket skal benytte den metoden som gir høyest krav til kapital.",null,null,null,null,null,null,null,null,null,null,null,null,"30.06.",{"$f":"YEAR(NOW())","v":2022},{"$f":"O2&P2","v":"30.06.2022"}]
[]
[null,"Beregningsmetode A: Faste kostnader","Kroner"]
[null,"Utgifter til personal og administration"]
[null,"Av- og nedskriving av materielle og immaterielle aktiva"]
[null,"Andre driftskostnader"]
[null,"Faste kostnader i alt",{"$f":"SUM(C5:C7)","v":0}]
[null,"Kapitalkrav: 10 prosent av faste kostnader",{"$f":"C8*0.1","v":0}]
[]
[null,"Omregningsfaktorer ved bruk av metode B og C. (Sett kryss i en av cellene)","Kryss"]
[null,"Hvis selskapet yter betalingstjenester som anført i forskrift om finansforetak og finanskonsern § 14-4, annet ledd  b).\n                                                                                                                                                               Omregningsfaktor 1,0. Sett kryss (x)"]
[null,"Hvis selskapet kun yter betalingstjenester som anført i forskrift om finansforetak og finanskonsern § 14-4, annet ledd  a). \n                                                                                                                                                               Omregningsfaktor 0,5. Sett kryss (x)"]
[]
[null,"Beregningsmetode B: Betalingsvolum","Kroner"]
[null,"Samlet betalingsvolum (dvs. sum betalingstransaksjoner siste 12 måneder)"]
[null,"BV = 1/12 av samlet betalingsvolum (ved oppstart, beregnet månedsvolum)"]
[null,"a. 4,0 prosent av BV inntil 5 mill. euro"]
[null,"b. 2,5 prosent over 5 mill. euro inntil 10 mill. euro"]
[null,"c. 1,0 prosent av BV over 10 mill. euro inntil 100 mill. euro"]
[null,"d. 0,5 prosent av BV over 100 mill. euro inntil 250 mill. euro"]
[null,"e. 0,25 prosent over 250 mill. euro"]
[null,"Sum (a-e)",{"$f":"SUM(C18:C22)","v":0}]
[null,"Kapitalkrav:  Sum (a-e)  *  omregningsfaktor (dvs. enten 0,5/1,0)"]
[]
[null,"Beregningsmetode C: Nettoinntekter","Kroner"]
[null,"Netto renteinntekter (+/-)"]
[null,"Mottatte provisjoner og gebyrer (+/-)"]
[null,"Andre driftsinntekter (+/-)"]
[null,"Nettoinntekter (NT) i alt (+/-)",{"$f":"SUM(C27:C29)","v":0}]
[null,"a. 10 prosent av NT fra 0 - 2,5 mill. euro"]
[null,"b. 8,0 prosent av NT over 2,5 mill. euro - 5,0 mill. euro"]
[null,"c. 6,0 prosent av NT over 5,0 mill. euro - 25,0 mill. euro"]
[null,"d. 3,0 prosent av NT over 25,0 mill. euro - 50,0 mill. euro"]
[null,"e. 1,5 prosent over 50,0 mill. euro"]
[null,"Sum (a-e)",{"$f":"SUM(C31:C35)","v":0}]
[null,"Kapitalkrav: Sum (a-e) * omregningsfaktor (dvs. enten 0,5/1,0)"]
[]
[null,"2 prosent av gjennomsnittsverdien for de siste 6 måneder av e-pengeforetakets gjeld knyttet til utestående elektroniske penger"]
[null,"Kapitalkrav etter beregningsmetode a,b eller c + 2 % (posten over)",{"$f":"C39+MAX(C9,C24,C37)","v":0}]
[null,"Sum ansvarlig kapital ved utgangen av perioden",{"$f":"'E-pengeforetak'!C47+'E-pengeforetak'!C48+'E-pengeforetak'!C49+ IF('E-pengeforetak'!C50<0,'E-pengeforetak'!C50,0) -'E-pengeforetak'!C40-'E-pengeforetak'!C39-'E-pengeforetak'!C38","v":0}]
[null,"Krav til startkapital jf.§ 3-4 (2) i finansforetaksloven og konsesjonsbrev (hentes fra fanen 'E-pengeforetak')",{"$f":"+'E-pengeforetak'!C70","v":0}]
[null,"Ansvarlig kapital minus kapitalkrav",{"$f":"C41-MAX(C40,C42)","v":0},null,{"$f":" IF(C43<0, \"Feil, sjekk beregningen. Husk at kun beregningsmetode a, b ELLER c skal fylles ut.\",\"\")","v":""}]

{"sheet":"Opplysningsfullmektig","index":6,"n_rows":38,"n_cols":3,"rows_kept":38,"cut":false,"hidden":true,"merged":[[25,1,25,2]]}
[null,"Rapporteringsskjema for opplysningsfullmektiger"]
[]
[]
[null,"For foretak med tillatelse til å kun yte kontoinformasjonstjenester (opplysningsfullmektiger)"]
[]
[null,"Foretakets revisor (navn):"]
[null,"Foretakets revisor (org.nr.):"]
[null,"Foretakets regnskapsfører (hvis det brukes regnskapsfører) (navn):"]
[null,"Foretakets regnskapsfører (org.nr.):"]
[]
[]
[null,"Er foretaket også agent for et utenlandsk betalingsforetak: JA/NEI"]
[null,"Hvis JA, hvilket betalings-/e-pengeforetak er foretaket agent for?"]
[null,"Har foretaket agenter eller filialer: JA/NEI"]
[null,"Antall kontroller med agent/filial, siste 12 måneder"]
[null,"Har det vært stedlig og/eller dokumentbasert kontroll?"]
[]
[null,"For ytterligere informasjon se EBA guideline","EBA/GL/2017/08"]
[null,"Størrelse på garanti/forsikring i kroner"]
[null,"Verdi i NOK av forespørsler om tilbakebetaling mottatt, siste 12 måneder (EBA guideline 5.1, 5.2, 5.3, 5.4)"]
[null,"Antall adganger gitt til betalingskontoer, siste 12 måneder (EBA guideline 5.8, 5.9, 5.10)"]
[null,"Antall brukere av kontoinformasjonstjenester, siste 12 måneder (EBA guideline 7.2, 7.3, 7.4)"]
[null,"Kan foretaket bekrefte at det har en forsikring/garanti som tilfredsstiller krav jf finansforetaksloven § 2-10 a tredje ledd og EBA/GL/2017/08?   JA/NEI"]
[]
[null,"Resultatregnskap (akkumulert)","Kroner"]
[null,"Inntekter:"]
[null,"Provisjonsinntekter fra konsesjonspliktig virksomhet"]
[null,"Andre inntekter fra konsesjonspliktig virksomhet"]
[null,"Inntekter fra ikke-konsesjonspliktig virksomhet"]
[null,"Sum inntekter",{"$f":"SUM(C27:C29)","v":0}]
[]
[null,"Kostnader:","Kroner"]
[null,"Provisjonskostnader fra konsesjonspliktig virksomhet"]
[null,"Andre kostnader fra konsesjonspliktig virksomhet"]
[null,"Kostnader fra ikke-konsesjonspliktig virksomhet"]
[null,"Skattekostnad"]
[null,"Sum kostnader",{"$f":"SUM(C33:C36)","v":0}]
[null,"Resultat etter skatt for perioden",{"$f":"+C30-C37","v":0}]

{"sheet":"Betalingsfullmektig","index":7,"n_rows":74,"n_cols":17,"rows_kept":74,"cut":false,"hidden":true,"merged":[[1,1,1,2],[48,1,48,2]]}
[null,"Rapporteringsskjema for betalingsforetak som kun har tillatelse til å yte betalingsfullmakttjenester (betalingsfullmektig)",null,null,null,null,null,null,null,null,null,null,null,null,"31.12.",{"$f":"YEAR(NOW())-1","v":2021},{"$f":"O1&P1","v":"31.12.2021"}]
[null,"Betalingsforetak skal ved utløpet av hvert halvår foreta regnskapsinnberetning til Finanstilsynet, jf. § 2-6 i forskrift om finansforetak og finanskonsern.                                                               Alle hvite felter skal fylles ut, med mindre annet står eksplisitt. \n",null,null,null,null,null,null,null,null,null,null,null,null,"30.06.",{"$f":"YEAR(NOW())","v":2022},{"$f":"O2&P2","v":"30.06.2022"}]
[]
[null,"Ansvarlig person for oppfølging av hvitvaskingsregelverket, navn:"]
[null,"Foretakets revisor (navn):"]
[null,"Foretakets revisor (org.nr.):"]
[null,"Foretakets regnskapsfører (hvis det brukes regnskapsfører) (navn):"]
[null,"Foretakets regnskapsfører (org.nr.):"]
[]
[]
[null,"Er foretaket også agent for et utenlandsk betalingsforetak: JA/NEI"]
[null,"Hvis JA, hvilket betalings-/e-pengeforetak er foretaket agent for?"]
[null,"Har foretaket agenter eller filialer: JA/NEI"]
[null,"Antall kontroller med agent/filial, siste 12 måneder"]
[null,"Har det vært stedlig og/eller dokumentbasert kontroll?"]
[]
[null,null,"Kroner"]
[null,"Månedlige gjennomsnittlig sum av betalingsfullmakttjenester foretaket har utført i rapporteringsperioden "]
[]
[]
[null,"Antall transaksjoner i rapporteringsperioden"]
[null,"Antall transaksjoner til høyrisikoland, jf. hvitvaskingsforskriften § 4-10, i rapporteringsperioden"]
[null,"Total verdi i NOK på transaksjonene til høyrisikoland, som nevnt i foregående spørsmål. "]
[null,"Antall transaksjoner til andre land foretaket selv anser som høyrisiko, i rapporteringsperioden"]
[null,"Total verdi i NOK på transaksjonene til andre høyrisikoland, som nevnt i foregående spørsmål. "]
[null,"Antall unike kunder som har gjennomført transaksjoner i rapporteringsperioden"]
[null,"Antall kunder som har gjennomført transaksjoner i rapporteringsperioden, og som av foretaket er klassifisert som høyrisikokunder. "]
[null,"Antall undersøkelser i henhold til hvitvaskingsloven § 25 som ble foretatt i rapporteringsperioden,\nmen som ikke resulterte i melding til ØKOKRIM"]
[null,"Antall meldinger om mistenkelige transaksjoner \nsom er sendt til ØKOKRIM i rapporteringsperioden, i henhold til hvitvaskingsloven § 26:"]
[]
[null,"Balanse","Kroner"]
[null,"Varige driftsmidler og finansielle anleggsmidler"]
[null,"Immaterielle eiendeler"]
[null,"Utsatt skattefordel"]
[null,"Andre fradragsposter jf. § 7 i forskrift om beregning av ansvarlig kapital for banker mv."]
[null,"Bankinnskudd, kontanter og lignende "]
[null,"Andre fordringer og eiendeler"]
[null,"Sum eiendeler ",{"$f":"SUM(C32:C37)","v":0}]
[]
[null,"Betalbar skatt og skyldige offentlige avgifter"]
[null,"Annen gjeld"]
[null,"Ansvarlig lånekapital",null,{"$f":"IF(C42>D64,\"Ansvarlig lånekapital utgjør mer enn 25% av ansvarlig kapital. Overskytende lånekapital må føres under 'annen gjeld',\",\"\")","v":""}]
[null,"Innskutt egenkapital"]
[null,"Opptjent egenkapital (Kapital fra revisorgodkjent delsårsresultat som kan medregnes som ansvarlig kapital jf. Forskrift om beregning av ansvarlig kapital for banker mv. § 3 sjette punkt, skal inkluderes her)"]
[null,"Resultat hittil i år (Skal kun fylles ut for rapportering for første halvår. Delårsresultat som er tatt med i linjen over skal ikke med her)"]
[null,"Sum egenkapital og forpliktelser",{"$f":"SUM(C40:C45)","v":0},{"$f":"C38-C46","v":0},{"$f":"IF(D46<>0, \"Sum eiendeler skal være lik sum egenkapital og forpliktelser\",\"\")","v":""}]
[]
[null,"Resultatregnskap (akkumulert)","Kroner"]
[null,"Inntekter:"]
[null,"Provisjonsinntekter fra konsesjonspliktig virksomhet (kun betalingsforetaksvirksomhet)"]
[null,"Andre inntekter fra konsesjonspliktig virksomhet (kun betalingsforetaksvirksomhet)"]
[null,"Inntekter som ikke er fra betalingsforetaksvirksomhet"]
[null,"Sum inntekter",{"$f":"SUM(C50:C52)","v":0}]
[]
[null,"Kostnader:","Kroner"]
[null,"Provisjonskostnader fra konsesjonspliktig virksomhet (kun betalingsforetaksvirksomhet)"]
[null,"Andre kostnader fra konsesjonspliktig virksomhet (kun betalingsforetaksvirksomhet)"]
[null,"Kostnader som ikke er fra betalingsforetaksvirksomhet"]
[null,"Skattekostnad"]
[null,"Sum kostnader",{"$f":"SUM(C56:C59)","v":0}]
[null,"Resultat etter skatt for perioden",{"$f":"+C53-C60","v":0}]
[]
[null,"Kontroll av egenkapital ","Kroner"]
[null,"Sum ansvarlig kapital ved utgang av perioden",{"$f":"SUM(C42:C44) + IF(C45<0,C45,0) -C35-C33-C34","v":0},{"$f":"C64*25%","v":0}]
[null,"Krav til kapital jf.§ 3-4 (2) i finansforetaksloven og konsesjonsbrev (50 000 euro)"]
[null,"Ansvarlig kapital minus kapitalkrav",{"$f":"C64-MAX(C65:C65)","v":0},null,{"$f":"IF(C66<0,\"Feil, sjekk beregningen\",\"\")","v":""}]
[]
[null,"Beregning av ansvarsforsikring eller tilsvarende garanti for betalingsfullmakttjenester"]
[null,"For ytterligere informasjon se EBA guideline","EBA/GL/2017/08"]
[null,"Størrelse på garanti/forsikring i kroner"]
[null,"Verdi i NOK av forespørsler om tilbakebetaling mottatt, siste 12 måneder (EBA guideline 5.1, 5.2, 5.3, 5.4)"]
[null,"Antall initierte betalingstransaksjoner, siste 12 måneder (EBA guideline 5.5, 5.6, 5.7)"]
[null,"Verdi av initierte betalingstransaksjoner, siste 12 måneder (EBA guideline 7.1, 7.3, 7.4)"]
[null,"Kan foretaket bekrefte at det har en forsikring/garanti som tilfredsstiller krav jf finansforetaksloven § 2-10 annet ledd og EBA/GL/2017/08?   JA/NEI"]

{"sheet":"Betalings-og opplysningsfullmek","index":8,"n_rows":82,"n_cols":17,"rows_kept":82,"cut":false,"hidden":true,"merged":[[1,1,1,2],[48,1,48,2]]}
[null,"Rapporteringsskjema for betalingsforetak som kun har tillatelse til å yte betalings- og opplysningsfullmakttjenester",null,null,null,null,null,null,null,null,null,null,null,null,"31.12.",{"$f":"YEAR(NOW())-1","v":2021},{"$f":"O1&P1","v":"31.12.2021"}]
[null,"Betalingsforetak skal ved utløpet av hvert halvår foreta regnskapsinnberetning til Finanstilsynet, jf. § 2-6 i forskrift om finansforetak og finanskonsern.                                                               Alle hvite felter skal fylles ut, med mindre annet står eksplisitt. \n",null,null,null,null,null,null,null,null,null,null,null,null,"30.06.",{"$f":"YEAR(NOW())","v":2022},{"$f":"O2&P2","v":"30.06.2022"}]
[]
[null,"Ansvarlig person for oppfølging av hvitvaskingsregelverket, navn:"]
[null,"Foretakets revisor (navn):"]
[null,"Foretakets revisor (org.nr.):"]
[null,"Foretakets regnskapsfører (hvis det brukes regnskapsfører) (navn):"]
[null,"Foretakets regnskapsfører (org.nr.):"]
[]
[]
[null,"Er foretaket også agent for et utenlandsk betalingsforetak: JA/NEI"]
[null,"Hvis JA, hvilket betalings-/e-pengeforetak er foretaket agent for?"]
[null,"Har foretaket agenter eller filialer: JA/NEI"]
[null,"Antall kontroller med agent/filial, siste 12 måneder"]
[null,"Har det vært stedlig og/eller dokumentbasert kontroll?"]
[]
[null,null,"Kroner"]
[null,"Månedlige gjennomsnittlig sum av betalingsfullmakttjenester foretaket har utført i rapporteringsperioden "]
[]
[]
[null,"Antall transaksjoner i rapporteringsperioden"]
[null,"Antall transaksjoner til høyrisikoland, jf. hvitvaskingsforskriften § 4-10, i rapporteringsperioden"]
[null,"Total verdi i NOK på transaksjonene til høyrisikoland, som nevnt i foregående spørsmål. "]
[null,"Antall transaksjoner til andre land foretaket selv anser som høyrisiko, i rapporteringsperioden"]
[null,"Total verdi i NOK på transaksjonene til andre høyrisikoland, som nevnt i foregående spørsmål. "]
[null,"Antall unike kunder som har gjennomført transaksjoner i rapporteringsperioden"]
[null,"Antall kunder som har gjennomført transaksjoner i rapporteringsperioden, og som av foretaket er klassifisert som høyrisikokunder. "]
[null,"Antall undersøkelser i henhold til hvitvaskingsloven § 25 som ble foretatt i rapporteringsperioden,\nmen som ikke resulterte i melding til ØKOKRIM"]
[null,"Antall meldinger om mistenkelige transaksjoner \nsom er sendt til ØKOKRIM i rapporteringsperioden, i henhold til hvitvaskingsloven § 26:"]
[]
[null,"Balanse","Kroner"]
[null,"Varige driftsmidler og finansielle anleggsmidler"]
[null,"Immaterielle eiendeler"]
[null,"Utsatt skattefordel"]
[null,"Andre fradragsposter jf. § 7 i forskrift om beregning av ansvarlig kapital for banker mv."]
[null,"Bankinnskudd, kontanter og lignende "]
[null,"Andre fordringer og eiendeler"]
[null,"Sum eiendeler ",{"$f":"SUM(C32:C37)","v":0}]
[]
[null,"Betalbar skatt og skyldige offentlige avgifter"]
[null,"Annen gjeld"]
[null,"Ansvarlig lånekapital",null,{"$f":"IF(C42>D64,\"Ansvarlig lånekapital utgjør mer enn 25% av ansvarlig kapital. Overskytende lånekapital må føres under 'annen gjeld',\",\"\")","v":""}]
[null,"Innskutt egenkapital"]
[null,"Opptjent egenkapital (Kapital fra revisorgodkjent delsårsresultat som kan medregnes som ansvarlig kapital jf. Forskrift om beregning av ansvarlig kapital for banker mv. § 3 sjette punkt, skal inkluderes her)"]
[null,"Resultat hittil i år (Skal kun fylles ut for rapportering for første halvår. Delårsresultat som er tatt med i linjen over skal ikke med her)"]
[null,"Sum egenkapital og forpliktelser",{"$f":"SUM(C40:C45)","v":0},{"$f":"C38-C46","v":0},{"$f":"IF(D46<>0, \"Sum eiendeler skal være lik sum egenkapital og forpliktelser\",\"\")","v":""}]
[]
[null,"Resultatregnskap (akkumulert)","Kroner"]
[null,"Inntekter:"]
[null,"Provisjonsinntekter fra konsesjonspliktig virksomhet (kun betalingsforetaksvirksomhet)"]
[null,"Andre inntekter fra konsesjonspliktig virksomhet (kun betalingsforetaksvirksomhet)"]
[null,"Inntekter som ikke er fra betalingsforetaksvirksomhet"]
[null,"Sum inntekter",{"$f":"SUM(C50:C52)","v":0}]
[]
[null,"Kostnader:","Kroner"]
[null,"Provisjonskostnader fra konsesjonspliktig virksomhet (kun betalingsforetaksvirksomhet)"]
[null,"Andre kostnader fra konsesjonspliktig virksomhet (kun betalingsforetaksvirksomhet)"]
[null,"Kostnader som ikke er fra betalingsforetaksvirksomhet"]
[null,"Skattekostnad"]
[null,"Sum kostnader",{"$f":"SUM(C56:C59)","v":0}]
[null,"Resultat etter skatt for perioden",{"$f":"+C53-C60","v":0}]
[]
[null,"Kontroll av egenkapital ","Kroner"]
[null,"Sum ansvarlig kapital ved utgang av perioden",{"$f":"SUM(C42:C44) + IF(C45<0,C45,0) -C35-C33-C34","v":0},{"$f":"C64*25%","v":0}]
[null,"Krav til kapital jf.§ 3-4 (2) i finansforetaksloven og konsesjonsbrev (50 000 euro)"]
[null,"Ansvarlig kapital minus kapitalkrav",{"$f":"C64-MAX(C65:C65)","v":0},null,{"$f":"IF(C66<0,\"Feil, sjekk beregningen\",\"\")","v":""}]
[]
[null,"Beregning av ansvarsforsikring eller tilsvarende garanti for betalingsfullmakttjenester"]
[null,"For ytterligere informasjon se EBA guideline","EBA/GL/2017/08"]
[null,"Størrelse på garanti/forsikring i kroner"]
[null,"Verdi i NOK av forespørsler om tilbakebetaling mottatt, siste 12 måneder (EBA guideline 5.1, 5.2, 5.3, 5.4)"]
[null,"Antall initierte betalingstransaksjoner, siste 12 måneder (EBA guideline 5.5, 5.6, 5.7)"]
[null,"Verdi av initierte betalingstransaksjoner, siste 12 måneder (EBA guideline 7.1, 7.3, 7.4)"]
[null,"Kan foretaket bekrefte at det har en forsikring/garanti som tilfredsstiller krav jf finansforetaksloven § 2-10 annet ledd og EBA/GL/2017/08?   JA/NEI"]
[]
[null,"Beregning av ansvarsforsikring eller tilsvarende garanti for opplysningsfullmakttjenester"]
[null,"For ytterligere informasjon se EBA guideline","EBA/GL/2017/08"]
[null,"Størrelse på garanti/forsikring i kroner"]
[null,"Verdi i NOK av forespørsler om tilbakebetaling mottatt, siste 12 måneder (EBA guideline 5.1, 5.2, 5.3, 5.4)"]
[null,"Antall adganger gitt til betalingskontoer, siste 12 måneder (EBA guideline 5.8, 5.9, 5.10)"]
[null,"Antall brukere av kontoinformasjonstjenester, siste 12 måneder (EBA guideline 7.2, 7.3, 7.4)"]
[null,"Kan foretaket bekrefte at det har en forsikring/garanti som tilfredsstiller krav jf finansforetaksloven § 2-10 a tredje ledd og EBA/GL/2017/08?   JA/NEI"]